Cogmind - Beta 14 @@@ ROGUE MODE // 2024.12.08 @ 01:38:55 Player: Ayre223 Result: Destroyed by D-53 Grenadier with Mini Grenade Launcher Performance ------------- Evolutions (1) 500 Regions Visited (3) 600 Robots Destroyed (14) 70 Value Destroyed (408) 408 Prototype IDs (2) 40 Alien Tech Used (0) 0 Bonus (0) 0 TOTAL SCORE: 1618 Bonus ------- None Cogmind --------- Core Integrity 0/400 Matter 200/300 Energy 100/100 System Corruption 0% Temperature Cool (0) Movement Core (50) Location -9/Mines Parts ------- > --- POWER (1) -------- (None) > --- PROPULSION (3) --- (None) > --- UTILITY (3) ------ (None) > --- WEAPON (2) ------- (None) > --- INVENTORY (5) ---- Ion Engine EM Pulse Gun Improved EM Shotgun Improved EM Shotgun Faulty Improved EM Shotgun Peak State ------------ > --- POWER ------------ Ion Engine > --- PROPULSION ------- Aluminum Leg Aluminum Leg Aluminum Leg > --- UTILITY ---------- Improved Heat Sink Small Storage Unit Structural Scanner > --- WEAPON ----------- EM Pulse Gun Light Cannon > --- INVENTORY -------- Ion Engine Improved EM Shotgun Improved EM Shotgun Improved EM Shotgun Improved EM Shotgun Grenade Launcher Grenade Launcher [Rating: 12] Favorites ----------- Power Ion Engine Engine Ion Engine Propulsion Aluminum Leg Leg Aluminum Leg Utility Small Storage Unit Device Structural Scanner Storage Small Storage Unit Weapon EM Pulse Gun Energy Gun EM Pulse Gun Ballistic Cannon Light Cannon Launcher Grenade Launcher Build | -11 -10 -9 -9 ------- Run | Yrd Mat Mat Min Slots Evolved 2 | . . 2 . Power . | . . . . Propulsion 1 | . . 1 . Utility 1 | . . 1 . Weapon . | . . . . Parts Attached 17 | 6 2 1 8 Power 2 | 1 . . 1 Engine 2 | 1 . . 1 Core . | . . . . Reactor . | . . . . Propulsion 3 | 2 . . 1 Treads . | . . . . Leg 3 | 2 . . 1 Wheel . | . . . . Hover . | . . . . Flight . | . . . . Utility 5 | 1 1 1 2 Device 3 | . 1 1 1 Storage 2 | 1 . . 1 Processor . | . . . . Hackware . | . . . . Protection . | . . . . Artifact . | . . . . Weapon 7 | 2 1 . 4 Energy Gun 3 | 2 . . 1 Energy Cannon . | . . . . Ballistic Gun . | . . . . Ballistic Cannon 1 | . 1 . . Launcher 3 | . . . 3 Special Weapon . | . . . . Impact Weapon . | . . . . Slashing Weapon . | . . . . Piercing Weapon . | . . . . Special Melee Weapon . | . . . . Unidentified Prototypes . | . . . . Parts Lost 11 | . 1 . 10 Power 2 | . . . 2 Propulsion 3 | . . . 3 Utility 2 | . . . 2 Weapon 4 | . 1 . 3 Highest Loss Streak 9 | . 1 . 9 To Critical Strikes . | . . . . Average Slot Usage (%) 89 | . 95 88 83 Engine 11 | . 14 11 9 Leg 26 | . 28 22 25 Device 16 | . 10 22 20 Storage 11 | . 14 11 9 Energy Gun 13 | . 21 11 6 Ballistic Cannon 8 | . 5 11 9 Launcher 1 | . . . 2 Peak Build Rating 12 | 6 10 11 12 Average Rating 8 | 3 8 11 8 On Entrance 6 | . 6 10 11 Naked Turns 3 | . . . 3 Heaviest Build 23 | 14 16 17 23 Greatest Support 30 | 20 20 20 30 Greatest Overweight (x) 2 | . . . 2 Average Overweight (x) . | . . . . Largest Inventory Capacity 10 | 8 8 8 10 Average Capacity 8 | 7 8 8 8 Most Carried 8 | 5 8 7 8 Average Carried 6 | 2 5 7 7 Final Capacity 8 | 8 8 8 5 Final Carried 8 | 2 8 7 5 Class Distribution -------------------- 100% | Mutant Dominant Class ---------------- Mutant | -10/Materials Mutant | -9/Materials Mutant | -9/Mines Resources | -11 -10 -9 -9 ----------- Run | Yrd Mat Mat Min Matter Collected 415 | 209 51 37 118 Remotely . | . . . . Salvage Created 417 | . 93 63 261 Parts 25 | . 4 3 18 Haulers Intercepted . | . . . . Recyclers Shooed . | . . . . Parts Field Recycled . | . . . . Retrieved Matter . | . . . . Parts Self-Destructed . | . . . . Prevented . | . . . . Kills | -11 -10 -9 -9 ------- Run | Yrd Mat Mat Min Combat Hostiles Destroyed 18 | . 2 2 14 Guns 1 | . . . 1 Cannons 3 | . . 2 1 AOE 14 | . 2 . 12 Classes Destroyed 6 | . 1 . 5 Tunneler 1 | . . . 1 Recycler 1 | . . . 1 Swarmer 3 | . . . 3 Grunt 8 | . 2 2 4 Duelist 1 | . . . 1 Assembled 6 | . . . 6 Best Kill Streak 8 | . 2 2 8 Combat Bots Only 6 | . 2 2 6 Max Kills in Single Turn 3 | . 2 1 3 Gunslinging . | . . . . Exploded 2 | . 2 . 2 Melee . | . . . . Uniques/NPCs Destroyed . | . . . . Combat | -11 -10 -9 -9 -------- Run | Yrd Mat Mat Min Hostile Shots Fired 80 | . 7 2 71 Missed 19 | . . . 19 Damage Taken 1316 | . 202 23 1091 Core 479 | . 46 23 410 Absorbed by Shields . | . . . . Core Remaining (%) 90 | 100 81 . . Volleys Fired 28 | . 4 3 21 Largest 2 | . 2 2 2 Hottest 80 | . 80 75 75 Shots Fired 48 | . 9 6 33 Gun 19 | . 9 3 7 Cannon 15 | . . 3 12 Launcher 14 | . . . 14 Special . | . . . . Kinetic 15 | . . 3 12 Thermal . | . . . . Explosive 14 | . . . 14 Electromagnetic 19 | . 9 3 7 Robot Hit Streak 8 | . 2 3 8 Robot Miss Streak 5 | . 2 5 3 Penetration Max . | . . . . Secondary Targets . | . . . . Shots Hit Robots 26 | . 5 3 18 Core Hits 34 | . 5 2 27 Critical Kills . | . . . . Critical Parts Destroyed . | . . . . Critical Strikes . | . . . . Melee Attacks . | . . . . Impact . | . . . . Slashing . | . . . . Piercing . | . . . . Sneak Attacks . | . . . . Combat Hostiles . | . . . . Follow-up Attacks . | . . . . Damage Inflicted 1484 | . 200 52 1232 Guns 143 | . 77 15 51 Cannons 175 | . . 37 138 Explosions 1166 | . 123 . 1043 Melee . | . . . . Ramming . | . . . . Kinetic 175 | . . 37 138 Thermal 81 | . 45 . 36 Explosive 1007 | . . . 1007 Electromagnetic 221 | . 155 15 51 Impact . | . . . . Slashing . | . . . . Piercing . | . . . . Highest Corruption 1 | . 1 . . Average Corruption 1 | . 1 . . Corruption Purged . | . . . . Corruption Blocked . | . . . . Effects 2 | . 2 . . Heat Flow Errors 1 | . 1 . . Misfires 1 | . 1 . . Overload Shots . | . . . . Overflow Damage 59 | . . . 59 Projectiles . | . . . . Explosions 59 | . . . 59 Melee . | . . . . Knockbacks 4 | . . . 4 Impact . | . . . . Kinetic 4 | . . . 4 Secondary . | . . . . Self-Inflicted Damage 162 | . 98 . 64 Shots 6 | . 3 . 3 Rammed . | . . . . Targets Rammed . | . . . . Kicked . | . . . . Crushed . | . . . . Highest Temperature 132 | . 132 . 6 Average Temperature 53 | . 62 . 3 Received Heat Transfer 203 | . 48 12 143 Siege Activations . | . . . . Robots Corrupted . | . . . . Combat Hostiles . | . . . . Parts Fried . | . . . . Impact Corruptions . | . . . . Robots Melted . | . . . . Combat Hostiles . | . . . . Parts Melted . | . . . . Heat Transferred 150 | . 100 . 50 Parts Sabotaged . | . . . . Parts Stolen . | . . . . Parts Stripped . | . . . . Power Chain Reactions 2 | . 1 . 1 Alert | -11 -10 -9 -9 ------- Run | Yrd Mat Mat Min Peak Influence 288 | . 109 85 288 Initial 45 | . . 45 33 Average 99 | . 63 66 158 Maximum Alert Level 1 | . . . 1 Low Security (%) 81 | 100 100 100 56 Level 1 18 | . . . 43 Level 2 . | . . . . Level 3 . | . . . . Level 4 . | . . . . Level 5 . | . . . . High Security . | . . . . Max Security . | . . . . Squads Dispatched . | . . . . Investigation . | . . . . Extermination . | . . . . Reinforcement . | . . . . Assault . | . . . . Garrison . | . . . . Intercept . | . . . . Searches Triggered . | . . . . Construction Impeded . | . . . . Haulers Reinforced . | . . . . Active Scanning Responses . | . . . . Cargo Convoy Interrupts . | . . . . Stealth | -11 -10 -9 -9 --------- Run | Yrd Mat Mat Min Distress Signals . | . . . . Communications Jammed . | . . . . Distress Signals . | . . . . Times Spotted 31 | . 8 2 21 Peak Tracking Total 7 | . 3 1 7 Tactical Retreats 2 | . . . 2 Traps | -11 -10 -9 -9 ------- Run | Yrd Mat Mat Min Traps Triggered 1 | . 1 . . Indirectly . | . . . . Trap Hack Attempts . | . . . . Triggered . | . . . . Disarmed . | . . . . Reprogrammed . | . . . . Reused . | . . . . Traps Extracted . | . . . . Installed . | . . . . Triggered . | . . . . Machines | -11 -10 -9 -9 ---------- Run | Yrd Mat Mat Min Machines Disabled 2 | . 2 . . Max in Single Turn 2 | . 2 . . Machines Repaired . | . . . . Machines Dismantled . | . . . . Machines Sabotaged . | . . . . Overloaded Fab Kills . | . . . . Hacking | -11 -10 -9 -9 --------- Run | Yrd Mat Mat Min Machines Accessed 1 | . 1 . . Terminals 1 | . 1 . . Fabricators . | . . . . Repair Stations . | . . . . Recycling Units . | . . . . Scanalyzers . | . . . . Garrison Access . | . . . . Total Hacks 2 | . 2 . . Successful 1 | . 1 . . Failed 1 | . 1 . . Catastrophic . | . . . . Database Lockouts . | . . . . Manual 2 | . 2 . . Terminals 2 | . 2 . . Fabricators . | . . . . Repair Stations . | . . . . Recycling Units . | . . . . Scanalyzers . | . . . . Garrison Access . | . . . . Terminal Hacks 1 | . 1 . . Prototype ID Bank 1 | . 1 . . Fabricator Hacks . | . . . . Repair Station Hacks . | . . . . Recycling Unit Hacks . | . . . . Scanalyzer . | . . . . Garrison Access Hacks . | . . . . Unauthorized Hacks . | . . . . Terminals . | . . . . Fabricators . | . . . . Repair Stations . | . . . . Recycling Units . | . . . . Scanalyzers . | . . . . Garrison Access . | . . . . Data Cores Recovered . | . . . . Used . | . . . . Hacking Detections . | . . . . Full Trace Events . | . . . . Feedback Events . | . . . . Feedback Blocked . | . . . . Robot Schematics Acquired . | . . . . Robots Built . | . . . . Authchips . | . . . . Time . | . . . . Total Robot Build Rating . | . . . . Part Schematics Acquired . | . . . . Parts Built . | . . . . Authchips . | . . . . Time . | . . . . Total Part Build Rating . | . . . . Parts Repaired . | . . . . Time . | . . . . Parts Recycled . | . . . . Recycled Matter . | . . . . Retrieved Matter . | . . . . Retrieved Components . | . . . . Parts Scanalyzed . | . . . . Part Schematics Acquired . | . . . . Parts Damaged . | . . . . Bothacking | -11 -10 -9 -9 ------------ Run | Yrd Mat Mat Min Used RIF Installer . | . . . . Robots Hacked . | . . . . Non-combat . | . . . . Combat . | . . . . Robot Hacks Applied . | . . . . Relay Couplers Released . | . . . . Fabnet Peak Effective % . | . . . . Robots Rewired . | . . . . Allies Hacked . | . . . . Hacks Repelled . | . . . . Allies | -11 -10 -9 -9 -------- Run | Yrd Mat Mat Min Total Allies . | . . . . Largest Group . | . . . . Highest-Rated Group . | . . . . Highest-Rated Ally . | . . . . Total Orders . | . . . . Ally Attacks . | . . . . Total Damage . | . . . . Kills . | . . . . Allies Corrupted . | . . . . Allies Melted . | . . . . Intel | -11 -10 -9 -9 ------- Run | Yrd Mat Mat Min Robot Analysis Total . | . . . . Derelict Logs Recovered . | . . . . Drone Launches . | . . . . Drone Recoveries . | . . . . Exploration | -11 -10 -9 -9 ------------- Run | Yrd Mat Mat Min Turns Passed 655 | 48 255 73 279 Spaces Moved 484 | 38 180 53 213 Core 95 | 15 . . 80 Treads . | . . . . Legs 389 | 23 180 53 133 Wheels . | . . . . Hover . | . . . . Flight . | . . . . Fastest Speed 50 | 50 120 120 50 Average Speed 107 | 92 120 120 95 Slowest Speed 260 | 120 120 120 260 Overloaded Moves . | . . . . Propulsion Burnouts . | . . . . Robots Hopped . | . . . . Cave-ins Triggered . | . . . . Exploration Rate (%) 24 | 4 42 9 43 Regions Visited 3 Branch Regions 1 Pre-discovered Areas . | . . . . Known Exits Taken . | . . . . Unknown Exits Taken 3 | 1 1 1 . Scrap Searched . | . . . . Spaces Dug . | . . . . Terrain Destroyed 88 | . 2 . 86 Melee . | . . . . Projectile . | . . . . AOE 88 | . 2 . 86 Terrain Rammed . | . . . . Walls Destroyed . | . . . . Machines Disabled . | . . . . Actions | -11 -10 -9 -9 --------- Run | Yrd Mat Mat Min Total 572 | 51 211 56 254 Wait 23 | . 16 . 7 Move 481 | 37 179 52 213 Hop . | . . . . Pick Up 19 | 8 9 . 2 Fast Attach 1 | . . . 1 Attach 12 | 6 2 1 3 Detach . | . . . . Swap 4 | . . . 4 Drop 4 | . 1 . 3 Fire 28 | . 4 3 21 Melee . | . . . . Ram . | . . . . Kick . | . . . . Crush . | . . . . Escape Stasis . | . . . . Rewire . | . . . . Trap . | . . . . Miscellaneous . | . . . . Route ------- -11/Scrapyard -10/Materials -9/Materials -9/Mines (discovered 1 exit: [*Mat]) History --------- Turn | Location | Event 27 | -11/Scrapyard | Discovered new exit (range 15) 49 | -11/Scrapyard | Entered Materials 266 | -10/Materials | Discovered new exit (range 3) 304 | -10/Materials | Entered another Materials area 304 | -9/Materials | Evolved 2 slots: Propulsion x1, Utility x1 325 | -9/Materials | Build established: Mutant 361 | -9/Materials | Discovered new exit (range 7) 377 | -9/Materials | Entered Mines 455 | -9/Mines | Discovered new exit (range 8) 578 | -9/Mines | Assembled infested the area 618 | -9/Mines | Core integrity fell below 50% 649 | -9/Mines | Lost 9 parts (2p3n1u3w) 654 | -9/Mines | Core integrity fell below 20% 656 | -9/Mines | Destroyed by D-53 Grenadier with Mini Grenade Launcher Last Messages --------------- 00606_ as-90026 knocked back. 00606_ as-90026 destroyed. 00606_ as-79416 destroyed. 00608_ The unstable cave ceiling collapses. 00609_ C-30 ARC bursts open, deploying its payload. 00609_ D-53 Grenadier unfolds itself. 00610_ The unstable cave ceiling collapses. 00611_ Grenade Launcher destroyed. 00612_ Aluminum Leg destroyed. 00613_ Dropped Med. Storage Unit. 00613_ Heat Sink destroyed. 00613_ Lgt. Cannon destroyed. 00614_ The unstable cave ceiling collapses. 00617_ as-58769 destroyed. 00618_ The unstable cave ceiling collapses. 00618_ Ion Engine destroyed. 00620_ as-87973 destroyed. 00653_ Structural Scanner destroyed. 00653_ Core Extractor disabled. Map ----- +----------------------------------------------------+ | ???????????????????##########?????????????????? | | ????????#######??#############????????????????? | | ??????############### #########??????????? | | ??????#### # ###### #############?????? | | ??###### # #########???? | | ######## = " # ######?? | | #### ## /%" ####?? | | *! "# ##?? | | %* = | ## #"# ###?? | | ##### ## ####### % [ ###?? | | ### #### # ## ####### ## ! ###?? | | ## ## # ## ##### ### # ##?? | | # #### #### ### ## ##?? | | ### ### ### ##?? | | ## ### #### ### ###? | | # #### #### ##### ####### #### ###? | | ######## ##### ############## ### ##? | | ####?### ##### ##?#####????## ### ##? | | ??????## ???## ????????????## ## ##? | | ??????## ???## ????????????#### ### " ### | | ??????## ???? #???????????#### ###### ## | | ??????# ????###???####????#### ## #### | | ???????? ???####### ##???#### ## ###?? | | ???????? ##??#### ##### #######??? | | ???????? ##??#### ##### #### #######??? | | ?????????????## @ ## #### ##???????? | | ?????????????## ## #### ##???????? | | ?????????????## " """ ### ##???????? | | ?????????????## " " d """ #####? ##???????? | | ?????????????## """ " " """ #### #???????? | | ?????????????## d ##??? ????????? | | ?????????????## """ """ """ ##?? ????????? | | ?????????????## """ """ """ # ? ## ????????? | | ?????????????## """ """ """ # #### ???????? | | ?????????????## # ###### ???????? | | ?????????????################ ##??## ???????? | | ?????????????## ########## ??????# ???????? | | ????????????????????????????????????## ???????? | | ????????????????????????????????????###???????? | | ??????????????????????????????????????????????? | | ??????????????????????????????????????????????? | | ??????????????????????????????????????????????? | | ??????????????????????????????????????????????? | | ??????????????????????????????????????????????? | | ??????????????????????????????????????????????? | | ??????????????????????????????????????????????? | | ??????????????????????????????????????????????? | | ??????????????????????????????????????????????? | | ??????????????????????????????????????????????? | | ??????????????????????????????????????????????? | +----------------------------------------------------+ Best States ------------- Heat Dissipation 42 Energy Generation 10 Energy Capacity 250 Matter Stores 300 Matter Capacity 300 Sight Range 16 Terrain Scan Density 10 Evasion (%) 55 Item Schematics ----------------- None Robot Schematics ------------------ None Fabricated ------------ Nothing Alien Tech Used ----------------- None Achievements -------------- None Challenges ------------ None Game ------ Seed BarrageGunInjector Manual? 0 Play Time 00:09:39 Cumulative 11.8 hours Start 2024.12.08 @ 01:32:32 End 2024.12.08 @ 01:38:55 Sessions 1 Manual Loads 0 Difficulty Rogue Special Mode None Game No. 21 Rogue 21 Adventurer 0 Explorer 0 Win Type - Total 0 Types 0/0/0/0/0/0/0/0/0 Lore% 10 Gallery% 20 Achievement% 18 Wizard Run 0 Options --------- Layout 1 ASCII 0 Keyboard 0 Movement Mouse Keybinds 0 Fullscreen 1 Font 24/Smallcaps Map View 50x35 Zoom Use 0% Tactical HUD 1 Map Filters NONE Filters NONE Steam 1 RUN: cb143c54-cd42-44c0-850a-2899b78a2ebb